Cogmind - Beta 16.1 @@@ ROGUE MODE // 2026.04.01 @ 20:17:19 Player: Satori Result: Destroyed by Fission Core chain reaction Performance ------------- Evolutions (0) 0 Regions Visited (3) 600 Robots Destroyed (23) 115 Value Destroyed (410) 410 Prototype IDs (34) 680 Alien Tech Used (0) 0 Bonus (138) 138 TOTAL SCORE: 1943 Bonus ------- Aligned with FarCom 300 Friendly Fire -162 Cogmind --------- Core Integrity 0/250 Matter 255/300 Energy 99/100 System Corruption 0% Temperature Cool (0) Movement Core (900) Ox17 Location -10/Exiles Parts ------- > --- POWER (1) -------- (None) > --- PROPULSION (2) --- (None) > --- UTILITY (2) ------ Cooling System High-capacity Storage Unit > --- WEAPON (2) ------- AWS/Gauss > --- INVENTORY (20) --- Light Treads Improved Treads Improved Treads Cooling System High-capacity Matter Pod (200) Experimental Sensor Array Seismic Detector Seismic Detector Transport Network Coupler Hacking Suite Beam Cannon Particle Cannon Light Cannon Datajack Field Lobotomy Kit (5) Maul Peak State ------------ > --- POWER ------------ Ion Engine > --- PROPULSION ------- Improved Treads Improved Treads > --- UTILITY ---------- Cooling System High-capacity Storage Unit > --- WEAPON ----------- AWS/Gauss > --- INVENTORY -------- Light Treads Improved Treads Improved Treads Cooling System High-capacity Matter Pod Experimental Sensor Array Seismic Detector Seismic Detector Transport Network Coupler Hacking Suite Beam Cannon Particle Cannon Light Cannon Datajack Field Lobotomy Kit Maul [Rating: 28] Favorites ----------- Power Ion Engine Engine Ion Engine Propulsion Light Treads Treads Light Treads Utility High-capacity Storage Unit Device Cooling System Storage High-capacity Storage Unit Protection Light Armor Plating Weapon Particle Cannon Energy Cannon Particle Cannon Ballistic Gun Light Assault Rifle Ballistic Cannon Light Cannon Impact Weapon Maul Special Melee Weapon Datajack Build | -11 -10 -10 -10 ------- Run | Yrd Mat Min Exi Slots Evolved . | . . . . Power . | . . . . Propulsion . | . . . . Utility . | . . . . Weapon . | . . . . Parts Attached 23 | 7 9 1 6 Power 2 | 1 1 . . Engine 2 | 1 1 . . Core . | . . . . Reactor . | . . . . Propulsion 6 | 2 2 . 2 Treads 6 | 2 2 . 2 Leg . | . . . . Wheel . | . . . . Hover . | . . . . Flight . | . . . . Utility 7 | 2 4 . 1 Device 4 | 1 3 . . Storage 2 | 1 1 . . Processor . | . . . . Hackware . | . . . . Protection 1 | . . . 1 Artifact . | . . . . Weapon 8 | 2 2 1 3 Energy Gun . | . . . . Energy Cannon 2 | . 2 . . Ballistic Gun 3 | 2 . . 1 Ballistic Cannon 1 | . . 1 . Launcher . | . . . . Special Weapon . | . . . . Impact Weapon 1 | . . . 1 Slashing Weapon . | . . . . Piercing Weapon . | . . . . Special Melee Weapon 1 | . . . 1 Unidentified Prototypes . | . . . . Parts Lost 8 | . 2 . 6 Power 1 | . . . 1 Propulsion 5 | . 1 . 4 Utility 2 | . 1 . 1 Weapon . | . . . . Highest Loss Streak 6 | . 2 . 6 To Critical Strikes 3 | . . . 3 Average Backups 15 | 1 13 20 19 Power . | . . . . Propulsion 4 | . 4 5 4 Utility 6 | . 4 8 8 Weapon 4 | . 3 5 4 Tool/Special . | . . . . Unused Backups 19 | . 3 1 15 Power 1 | . 1 . . Propulsion 3 | . . . 3 Utility 9 | . 1 1 7 Weapon 5 | . 1 . 4 Tool/Special 1 | . . . 1 Average Slot Usage (%) 95 | . 99 100 84 Engine 13 | . 14 14 13 Treads 27 | . 27 28 27 Device 13 | . 13 14 13 Storage 14 | . 14 14 14 Energy Cannon 18 | . 25 23 1 Ballistic Gun 2 | . 2 . 3 Ballistic Cannon 2 | . . 4 4 Peak Build Rating 28 | 7 12 12 28 Average Rating 11 | 6 10 11 14 On Entrance 7 | . 7 12 12 Avg Prop Armor Cover (%) . | . . . . Naked Turns . | . . . . Heaviest Build 57 | 14 55 55 57 Greatest Support 46 | 40 40 40 46 Greatest Overweight (x) 17 | . 1 1 17 Average Overweight (x) . | . . 1 1 Largest Inventory Capacity 20 | 8 20 20 20 Average Capacity 18 | 7 18 20 20 Most Carried 20 | 3 20 20 20 Average Carried 15 | 1 13 19 19 Final Capacity 20 | 8 20 20 20 Final Carried 20 | 3 20 20 16 Class Distribution -------------------- 100% | Mutant Dominant Class ---------------- Mutant | -10/Materials Mutant | -10/Mines Mutant | -10/Exiles Resources | -11 -10 -10 -10 ----------- Run | Yrd Mat Min Exi Matter Collected 480 | 232 218 30 . Remotely . | . . . . Salvage Created 618 | 52 517 49 . Parts 44 | 7 31 6 . Haulers Intercepted 2 | . 2 . . Recyclers Shooed . | . . . . Parts Field Recycled . | . . . . Retrieved Matter . | . . . . Parts Self-Destructed . | . . . . Prevented . | . . . . Parts Restored . | . . . . Kills | -11 -10 -10 -10 ------- Run | Yrd Mat Min Exi Combat Hostiles Destroyed 13 | . 10 3 . Melee 1 | . 1 . . Guns 1 | . 1 . . Cannons 10 | . 7 3 . Classes Destroyed 7 | 1 6 . . Tunneler 4 | 3 1 . . Hauler 2 | . 2 . . Recycler 1 | . 1 . . Operator 2 | . 2 . . Watcher 1 | . 1 . . Swarmer 6 | . 3 3 . Grunt 7 | . 7 . . Best Kill Streak 5 | 1 5 3 . Combat Bots Only 3 | . 3 3 . Max Kills in Single Turn 2 | 1 2 2 . Gunslinging . | . . . . Exploded . | . . . . Melee 1 | . 1 . . Uniques/NPCs Destroyed . | . . . . Combat | -11 -10 -10 -10 -------- Run | Yrd Mat Min Exi Hostile Shots Fired 173 | . 79 24 70 Missed 45 | . 24 2 19 Hits 128 | . 55 22 51 Projectile 128 | . 55 22 51 Critical Strikes 17 | . . 1 16 Damage Taken 1718 | . 644 169 905 Core 271 | . 111 14 146 Absorbed by Shields . | . . . . Core Remaining (%) 100 | 100 . . . Volleys Fired 55 | 8 39 8 . Largest 2 | 2 2 2 . Hottest 136 | 40 136 136 . Shots Fired 110 | 16 78 16 . Gun 22 | 16 6 . . Cannon 88 | . 72 16 . Launcher . | . . . . Special . | . . . . Kinetic 22 | 16 6 . . Thermal 88 | . 72 16 . Explosive . | . . . . Electromagnetic . | . . . . Robot Hit Streak 11 | 4 11 1 . Robot Miss Streak 6 | 3 2 6 . Penetration Max . | . . . . Secondary Targets . | . . . . Shots Hit Robots 72 | 8 48 5 11 Core Hits 27 | 4 19 3 1 Critical Kills . | . . . . Critical Parts Destroyed . | . . . . Critical Strikes . | . . . . Melee Attacks 11 | . . . 11 Impact 7 | . . . 7 Slashing . | . . . . Piercing . | . . . . Sneak Attacks 5 | . . . 5 Combat Hostiles . | . . . . Follow-up Attacks . | . . . . Damage Inflicted 1675 | 84 1078 203 310 Guns 120 | 84 36 . . Cannons 1128 | . 961 167 . Explosions . | . . . . Melee 306 | . . . 306 Ramming 121 | . 81 36 4 Kinetic 120 | 84 36 . . Thermal 1128 | . 961 167 . Explosive . | . . . . Electromagnetic . | . . . . Impact 306 | . . . 306 Slashing . | . . . . Piercing . | . . . . Highest Corruption . | . . . . Average Corruption . | . . . . Corruption Purged . | . . . . Corruption Blocked . | . . . . Overload Shots . | . . . . Overflow Damage 15 | . 14 1 . Projectiles 15 | . 14 1 . Explosions . | . . . . Melee . | . . . . Knockbacks 1 | . 1 . . Impact 1 | . 1 . . Kinetic . | . . . . Secondary . | . . . . Self-Inflicted Damage . | . . . . Shots . | . . . . Rammed 20 | . 15 4 1 Targets Rammed 22 | . 17 4 1 Kicked . | . . . . Crushed 2 | . 2 . . Highest Temperature 384 | . 384 63 . Average Temperature 92 | . 101 29 . Received Heat Transfer 333 | . 333 . . Effects 1 | . 1 . . Shutdowns 1 | . 1 . . Siege Activations . | . . . . Martial Activations . | . . . . Shielding Activations . | . . . . Robots Disrupted . | . . . . Combat Hostiles . | . . . . Robots Corrupted . | . . . . Combat Hostiles . | . . . . Parts Fried . | . . . . Impact Corruptions . | . . . . Robots Melted 1 | . 1 . . Combat Hostiles 1 | . 1 . . Parts Melted 3 | . 3 . . Heat Transferred 2035 | . 1739 296 . Parts Sabotaged . | . . . . Parts Stolen . | . . . . Parts Stripped . | . . . . Power Chain Reactions . | . . . . Alert | -11 -10 -10 -10 ------- Run | Yrd Mat Min Exi Maximum Alert Level . | . . . . Low Security (%) 100 | 100 100 100 . Level 1 . | . . . . Level 2 . | . . . . Level 3 . | . . . . Level 4 . | . . . . Level 5 . | . . . . High Security . | . . . . Max Security . | . . . . Peak Influence 94 | 5 94 70 . Initial . | . . . . Average 16 | . 23 4 . Influence Increases 424 | 15 339 70 . Destroy 0b10 Robot/C 260 | . 200 60 . Destroy 0b10 Robot/NC 50 | 15 35 . . Destroy Leader 76 | . 66 10 . Successful Hack 21 | . 21 . . Destroy Structure 2 | . 2 . . Lose Combat Pursuer 15 | . 15 . . Influence Decreases 424 | 15 339 70 . Time Decay 404 | 15 319 70 . Lost Part 20 | . 20 . . Squads Dispatched 3 | . 3 . . Investigation . | . . . . Extermination . | . . . . Reinforcement 3 | . 3 . . Assault . | . . . . Garrison . | . . . . Intercept . | . . . . Searches Triggered . | . . . . Construction Impeded . | . . . . Haulers Reinforced . | . . . . Active Scanning Responses . | . . . . Cargo Convoy Interrupts . | . . . . Stealth | -11 -10 -10 -10 --------- Run | Yrd Mat Min Exi Distress Signals 2 | . 2 . . Communications Jammed . | . . . . Distress Signals . | . . . . Times Spotted 37 | . 29 3 5 Peak Tracking Total 8 | . 4 3 8 Tactical Retreats 1 | . 1 . . Traps | -11 -10 -10 -10 ------- Run | Yrd Mat Min Exi Traps Triggered . | . . . . Indirectly . | . . . . Trap Hack Attempts . | . . . . Triggered . | . . . . Disarmed . | . . . . Reprogrammed . | . . . . Reused . | . . . . Traps Extracted . | . . . . Installed . | . . . . Triggered . | . . . . Machines | -11 -10 -10 -10 ---------- Run | Yrd Mat Min Exi Machines Disabled . | . . . . Max in Single Turn . | . . . . Machines Repaired . | . . . . Machines Dismantled . | . . . . Machines Sabotaged . | . . . . Overloaded Fab Kills . | . . . . Hacking | -11 -10 -10 -10 --------- Run | Yrd Mat Min Exi Machines Accessed 5 | . 4 . 1 Terminals 4 | . 4 . . Fabricators . | . . . . Repair Stations . | . . . . Recycling Units . | . . . . Scanalyzers . | . . . . Garrison Access . | . . . . Total Hacks 16 | . 15 . 1 Successful 7 | . 6 . 1 Failed 9 | . 9 . . Catastrophic 1 | . 1 . . Database Lockouts . | . . . . Manual 12 | . 11 . 1 Terminals 15 | . 15 . . Fabricators . | . . . . Repair Stations . | . . . . Recycling Units . | . . . . Scanalyzers . | . . . . Garrison Access . | . . . . Terminal Hacks 1 | . . . 1 Proto ID Catalog 1 | . . . 1 Fabricator Hacks . | . . . . Repair Station Hacks . | . . . . Recycling Unit Hacks . | . . . . Scanalyzer . | . . . . Garrison Access Hacks . | . . . . Unauthorized Hacks 6 | . 6 . . Terminals 6 | . 6 . . Assimilate 1 | . 1 . . Botnet 1 | . 1 . . Operators 1 | . 1 . . Skim 3 | . 3 . . Fabricators . | . . . . Repair Stations . | . . . . Recycling Units . | . . . . Scanalyzers . | . . . . Garrison Access . | . . . . Data Cores Recovered . | . . . . Used . | . . . . Hacking Detections 4 | . 4 . . Full Trace Events . | . . . . Feedback Events . | . . . . Feedback Blocked . | . . . . Robot Schematics Acquired . | . . . . Robots Built . | . . . . Authchips . | . . . . Time . | . . . . Total Robot Build Rating . | . . . . Part Schematics Acquired . | . . . . Parts Built . | . . . . Authchips . | . . . . Time . | . . . . Total Part Build Rating . | . . . . Part Studies Acquired . | . . . . Parts Repaired . | . . . . Time . | . . . . Parts Recycled . | . . . . Recycled Matter . | . . . . Retrieved Matter . | . . . . Retrieved Components . | . . . . Parts Scanalyzed . | . . . . Part Schematics Acquired . | . . . . Parts Damaged . | . . . . Bothacking | -11 -10 -10 -10 ------------ Run | Yrd Mat Min Exi Used RIF Installer . | . . . . Robots Hacked 3 | . . . 3 Non-combat 2 | . . . 2 Combat 1 | . . . 1 Robot Hacks Applied 4 | . . . 4 parse_system 4 | . . . 4 Relay Couplers Released . | . . . . Fabnet Peak Effective % . | . . . . Robots Rewired . | . . . . Allies Hacked . | . . . . Hacks Repelled . | . . . . Allies | -11 -10 -10 -10 -------- Run | Yrd Mat Min Exi Total Allies 2 | . . 2 . Largest Group 2 | . . 2 2 Highest-Rated Group 42 | . . 42 42 Highest-Rated Ally 31 | . . 31 31 Total Orders . | . . . . Ally Attacks . | . . . . Total Damage . | . . . . Kills . | . . . . Allies Corrupted . | . . . . Allies Melted . | . . . . Intel | -11 -10 -10 -10 ------- Run | Yrd Mat Min Exi Active Infowar (turns) 938 | 131 807 . . Seismic 938 | 131 807 . . Robot Analysis Total . | . . . . Derelict Logs Recovered 2 | . . 2 . Drone Launches . | . . . . Drone Recoveries . | . . . . Exploration | -11 -10 -10 -10 ------------- Run | Yrd Mat Min Exi Turns Passed 3900 | 189 1837 981 893 Spaces Moved 1554 | 100 715 385 354 Core 6 | 5 . . 1 Treads 1548 | 95 715 385 353 Legs . | . . . . Wheels . | . . . . Hover . | . . . . Flight . | . . . . Fastest Speed 50 | 50 160 240 240 Average Speed 227 | 154 224 240 242 Slowest Speed 900 | 160 240 240 900 Overloaded Moves . | . . . . Propulsion Burnouts . | . . . . Robots Hopped . | . . . . Potential Cave-ins . | . . . . Cave-ins Triggered . | . . . . Exploration Rate (%) 58 | 5 94 95 41 Regions Visited 3 Branch Regions 2 Pre-discovered Areas 1 | . . 1 . Known Exits Taken . | . . . . Unknown Exits Taken 3 | 1 1 1 . Scrap Searched 1 | . . 1 . Spaces Dug . | . . . . Terrain Destroyed . | . . . . Melee . | . . . . Projectile . | . . . . AOE . | . . . . Terrain Rammed . | . . . . Walls Destroyed . | . . . . Machines Disabled . | . . . . Actions | -11 -10 -10 -10 --------- Run | Yrd Mat Min Exi Total 1780 | 117 855 424 384 Wait 65 | . 42 23 . Move 1551 | 99 714 384 354 Hop . | . . . . Pick Up 30 | 3 23 2 2 Fast Attach 11 | 7 3 . 1 Attach 8 | . 2 1 5 Detach 4 | . 1 . 3 Swap 6 | . 4 . 2 Drop 17 | . 10 2 5 Fire 55 | 8 39 8 . Melee 11 | . . . 11 Ram . | . . . . Kick . | . . . . Crush 22 | . 17 4 1 Escape Stasis . | . . . . Rewire . | . . . . Trap . | . . . . Miscellaneous . | . . . . Route ------- -11/Scrapyard -10/Materials (discovered 5 exits: [*Mat x3] / [*Min] / [*Sub]) -10/Mines (discovered 2 exits: [*Mat] / *Exi) -10/Exiles History --------- Turn | Location | Event 10 | -11/Scrapyard | Discovered new exit (range 15) 190 | -11/Scrapyard | Entered Materials 305 | -10/Materials | Build established: Mutant 430 | -10/Materials | Discovered new exit (range 16) 698 | -10/Materials | Discovered new exit (range 16) 1320 | -10/Materials | Discovered new exit (range 16) 1452 | -10/Materials | Discovered new exit (range 9) 1506 | -10/Materials | Discovered new exit (range 10) 2027 | -10/Materials | Entered Mines 2047 | -10/Mines | Met a Derelict bent on vengeance 2500 | -10/Mines | Discovered new exit (range 5) 2655 | -10/Mines | Found a damaged Exp. Sensor Array with a note attached 2665 | -10/Mines | Found Prototype Device 2740 | -10/Mines | Learned location of Zion (-6) 2850 | -10/Mines | Learned Materials machine intel 2975 | -10/Mines | Deemed a non-threat by the Exiles lab entrance 2975 | -10/Mines | Discovered new exit (range 5) 3008 | -10/Mines | Entered Exiles 3008 | -10/Exiles | Accompanied by 2 allies 3038 | -10/Exiles | Led the pair of lost Derelicts to a safe place 3064 | -10/Exiles | Met 8R-AWN 3122 | -10/Exiles | Met EX-HEX 3198 | -10/Exiles | Met EX-BIN 3232 | -10/Exiles | Aligned with FarCom system 3234 | -10/Exiles | Given EX-Vault access code 3290 | -10/Exiles | Opened EX-Vault 3309 | -10/Exiles | Found Field Lobotomy Kit 3368 | -10/Exiles | Warned to stay clear of 0b10 Research branches 3634 | -10/Exiles | Found AWS/Gauss 3840 | -10/Exiles | Attacked by the Exiles 3847 | -10/Exiles | Core integrity fell below 50% 3858 | -10/Exiles | Core integrity fell below 20% 3901 | -10/Exiles | Destroyed by Fission Core chain reaction Last Messages --------------- 03890_ Penetrated by HV Slug. 03890_ HV Slug penetrates Wall. 03890_ Penetrated by HV Slug. 03890_ HV Slug penetrates Wall. 03891_ Rigged Fission Core explodes. 03893_ HV Slug penetrates Wall. 03893_ Penetrated by HV Slug. 03893_ HV Slug penetrates Wall. 03895_ Penetrated by HV Slug. 03895_ HV Slug penetrates Wall. 03897_ Penetrated by HV Slug. 03897_ Critical hit (Destroy). 03897_ Imp. Treads destroyed. 03897_ HV Slug penetrates Wall. 03899_ Penetrated by HV Slug. 03899_ HV Slug penetrates Wall. 03899_ Penetrated by HV Slug. 03899_ HV Slug penetrates Wall. 03900_ Imp. Treads destroyed. 03901_ Rigged Fission Core explodes. Map ----- +----------------------------------------------------+ | ?????????????????????????????????????????????????? | | ?????????????????????????????????????????????????? | | ?????????????????????????????????????????????????? | | ?????????????????????????????????????????????????? | | ?????????????????????????????????????????????????? | | ?????????????????????????????????????????????????? | | ?????????????????????????????????????????????????? | | ?????????????????????????????????????????????????? | | ?????????????????????????????????????????????????? | | ?????????????????????????????????????????????????? | | ?????????????????????????????????????????????????? | | ?????????????????????????????????????????????????? | | ?????????????????????????????????????????????????? | | ?????????????????????????????????????????????????? | | ?????????????????????????????????????????????????? | | ????????????????????????????????? ???????????????? | | ????????????????????????????????# ?????????????? | | ???????????????????????????????# #????????????? | | ??????????????????????????????# #???????????? | | ??????????#####???????????????# #???????????? | | ?????????## #??????????????## ????????????? | | ##???????#" #?????????????## #?????????????? | | "#??????## ##????????????# #?????????????? | | "#????### ###????????### #??????????????? | | ##???# #########; #??????????????? | | ##?##% # ;;@ #???????????????? | | ###% g ;#??????????????? | | #; a #??????????????? | | ##;; ##?????????????? | | ""##; "" "##;; ###???????????? | | #"""### ########;##; * ###?????????? | | % ######?# ???????## ###### ##????????? | | ##??????# ?????????#?????### #????????? | | ##???????# ?????????????????### #????????? | | ""#????????##???????????????????### #????????? | | "##??????????????????????????????#" ##???????? | | ##???????????????????????????????#### ###?????? | | #???????????????????????????????????# ##????? | | ????????????????????????????????????## ###??? | | ?????????????????????????????????????### #??? | | ???????????????????????????????????????# ##??? | | ???????????????????????????????????????## ##???? | | ????????????????????????????????????????#####????? | | ?????????????????????????????????????????????????? | | ?????????????????????????????????????????????????? | | ?????????????????????????????????????????????????? | | ?????????????????????????????????????????????????? | | ?????????????????????????????????????????????????? | | ?????????????????????????????????????????????????? | | ?????????????????????????????????????????????????? | +----------------------------------------------------+ Best States ------------- Heat Dissipation 47 Energy Generation 10 Energy Capacity 250 Matter Stores 300 Matter Capacity 300 Sight Range 16 Terrain Scan Density 10 Armor Coverage 150 Evasion (%) 40 Recoil Reduction 2 Item Schematics ----------------- None Robot Schematics ------------------ None Fabricated ------------ Nothing Repaired ---------- Nothing Studied --------- None Alien Tech Used ----------------- None Achievements -------------- None Challenges ------------ None Game ------ Seed AssemblyTechThruster Manual? 0 Play Time 00:23:59 Cumulative 385.3 hours Start 2026.04.01 @ 19:56:52 End 2026.04.01 @ 20:17:19 Sessions 1 Manual Loads 0 Difficulty Rogue Special Mode None Game No. 132 Rogue 131 Adventurer 1 Explorer 0 Win Type - Total 15 Types 13/0/2/0/0/0/0/0/0/0 Lore% 79 Gallery% 73 Achievement% 58 Wizard Run 0 Options --------- Layout 0 ASCII 1 Keyboard 1 Movement Vi Keybinds 0 Fullscreen 1 Font 36/Terminus++ Map View 76x50 Zoom Use 0% Tactical HUD 1 Map Filters NONE Filters NONE Steam 0 RUN: e129eb6e-70cb-466e-aa39-2e528bfe9081